bitfinex/quotes_BTCUSD_20250812
["timestamp","ask_amount","ask_price","bid_price","bid_amount"]
[1755029512463,0.00014636,119780.0,119770.0,1.31736831]
[1755029513712,0.00014636,119780.0,119770.0,1.31592831]
[1755029513928,0.00014636,119780.0,119770.0,1.17772831]
[1755029514136,0.00521636,119780.0,119770.0,1.11088831]
[1755029514344,0.00521636,119780.0,119770.0,0.59795618]
[1755029514574,0.17218914,119780.0,119770.0,1.11088831]
[1755029514778,0.00521636,119780.0,119770.0,1.11088831]
[1755029515603,0.00521636,119780.0,119770.0,1.12762831]
[1755029515826,0.00521636,119780.0,119770.0,1.11088831]
[1755029516897,0.00215636,119780.0,119770.0,1.11088831]
[1755029517317,0.00215636,119780.0,119770.0,0.59795618]
[1755029517530,0.00215636,119780.0,119770.0,1.11088831]
[1755029518385,0.00215636,119780.0,119770.0,1.11283831]
[1755029518634,0.00215636,119780.0,119770.0,1.11592831]
[1755029518847,0.00014636,119780.0,119770.0,1.11592831]
[1755029521141,0.00221636,119780.0,119770.0,1.11084831]
[1755029521855,0.00014636,119780.0,119770.0,1.11585831]
[1755029522043,0.00014636,119780.0,119770.0,1.64443031]
[1755029522261,0.00014636,119780.0,119770.0,1.32878371]
[1755029522470,0.00014636,119780.0,119770.0,1.54071171]
[1755029522657,0.00014636,119780.0,119770.0,1.32878371]
[1755029524318,0.00014636,119780.0,119770.0,0.81585158]
[1755029524534,0.00014636,119780.0,119770.0,1.32878371]
[1755029525082,0.16918914,119780.0,119770.0,0.59935618]
[1755029525282,0.17213914,119780.0,119770.0,0.26796694]
[1755029525486,0.17213914,119780.0,119770.0,0.03524369]
[1755029526248,0.17213914,119780.0,119770.0,0.17284369]
[1755029527263,0.17213914,119780.0,119770.0,0.03324369]
[1755029527602,0.17213914,119780.0,119770.0,0.68565582]
[1755029528241,0.17413914,119780.0,119770.0,0.54617582]
[1755029528443,0.17413914,119780.0,119770.0,0.68549582]
[1755029528632,0.17413914,119780.0,119770.0,0.17256369]
[1755029529108,0.17413914,119780.0,119770.0,0.68549582]
[1755029529318,0.17413914,119780.0,119770.0,0.17256369]
[1755029529586,0.17413914,119780.0,119770.0,0.68549582]
[1755029530305,0.17413914,119780.0,119770.0,0.54617582]
[1755029530739,0.17413914,119780.0,119770.0,0.68557582]
[1755029530945,0.17413914,119780.0,119770.0,0.54617582]
[1755029531329,0.17413914,119780.0,119770.0,0.68557582]
[1755029531597,0.17413914,119780.0,119770.0,0.68549582]
[1755029531978,0.20824896,119780.0,119770.0,0.025055]
[1755029532273,0.20824896,119780.0,119770.0,0.164375]
[1755029532656,0.20824896,119780.0,119770.0,0.13932]
[1755029534150,0.16698672,119770.0,119760.0,0.54617007]
[1755029534372,0.17200672,119770.0,119760.0,0.17239794]
[1755029534572,0.17200672,119770.0,119760.0,0.14733894]
[1755029535180,0.16700066,119760.0,119750.0,0.175061]
[1755029535339,0.17202066,119760.0,119750.0,0.164141]
[1755029535751,0.17202066,119760.0,119750.0,0.67707313]
[1755029536141,0.17202066,119760.0,119750.0,0.164141]
[1755029536337,0.17202066,119760.0,119750.0,0.67707313]
[1755029536786,0.17202066,119760.0,119750.0,0.67695313]
[1755029537198,0.16907066,119760.0,119750.0,0.67695313]
[1755029537653,0.16907066,119760.0,119750.0,0.166071]
[1755029537825,0.16907066,119760.0,119750.0,0.69051473]
[1755029538598,0.16700066,119760.0,119750.0,0.1775826]
[1755029538898,0.16700066,119760.0,119750.0,0.69051473]
[1755029539082,0.16700066,119760.0,119750.0,0.85752934]
[1755029539489,0.16698672,119770.0,119750.0,1.09025259]
[1755029539693,0.16700066,119760.0,119750.0,0.57436046]
[1755029539895,0.16700066,119760.0,119750.0,1.08729259]
[1755029540298,0.16700066,119760.0,119750.0,1.09025259]
[1755029540499,0.16700066,119760.0,119750.0,0.92323798]
[1755029540705,0.16907066,119760.0,119750.0,0.76822798]
[1755029540906,0.16907066,119760.0,119750.0,0.025061]
[1755029541116,0.16701461,119750.0,119740.0,0.51589213]
[1755029541436,0.16701461,119750.0,119740.0,0.65702213]
[1755029541772,0.16701461,119750.0,119740.0,0.66519205]
[1755029542187,0.16701461,119750.0,119740.0,0.55217505]
[1755029542387,0.16701461,119750.0,119740.0,0.69125505]
[1755029544155,0.16749461,119750.0,119740.0,0.69125505]
[1755029544707,0.16749461,119750.0,119740.0,0.17832292]
[1755029544933,0.16749461,119750.0,119740.0,0.69125505]
[1755029545108,0.16749461,119750.0,119740.0,0.68600505]
[1755029545726,0.16749461,119750.0,119740.0,0.17307292]
[1755029546140,0.16749461,119750.0,119740.0,0.68600505]
[1755029546537,0.16749461,119750.0,119740.0,0.68805505]
[1755029547242,0.16749461,119750.0,119740.0,0.54921505]
[1755029547404,0.16749461,119750.0,119740.0,0.68785505]
[1755029547799,0.16749461,119750.0,119740.0,0.69081505]
[1755029548357,0.16749461,119750.0,119740.0,0.17780292]
[1755029548510,0.16749461,119750.0,119740.0,0.69073505]
[1755029550303,0.16749461,119750.0,119740.0,0.69057505]
[1755029551265,0.16749461,119750.0,119740.0,0.17764292]
[1755029551557,0.16749461,119750.0,119740.0,0.69057505]
[1755029554773,0.16749461,119750.0,119740.0,0.69013505]
[1755029555381,0.16749461,119750.0,119740.0,0.69500505]
[1755029555905,0.16749461,119750.0,119740.0,0.66994205]
[1755029556312,0.16749461,119750.0,119740.0,0.66894205]
[1755029556532,0.16849461,119750.0,119740.0,0.66894205]
[1755029556978,0.16849461,119750.0,119740.0,0.69400605]
[1755029558343,0.73583829,119750.0,119740.0,0.00487]
[1755029558548,0.22290616,119750.0,119740.0,0.14251]
[1755029559741,0.22390616,119750.0,119740.0,0.14251]
[1755029559912,0.22690616,119750.0,119740.0,0.14251]
[1755029561971,0.19306363,119750.0,119740.0,0.14251]
[1755029563343,0.18994363,119750.0,119740.0,0.14251]
[1755029564757,0.18994363,119750.0,119740.0,0.00487]
[1755029564966,0.18994363,119750.0,119740.0,0.14215]
[1755029570047,0.18994363,119750.0,119740.0,0.14167]
[1755029570048,0.70599576,119750.0,119740.0,0.14167]
[1755029570247,0.78848019,119750.0,119740.0,0.14167]
[1755029570603,0.87120344,119750.0,119740.0,0.00487]
[1755029570801,0.87120344,119750.0,119740.0,0.14163]
[1755029571777,0.35827131,119750.0,119740.0,0.14163]
[1755029572034,0.87120344,119750.0,119740.0,0.14163]
[1755029573029,0.87120344,119750.0,119740.0,0.00487]
[1755029573213,0.87120344,119750.0,119740.0,0.14143]
[1755029574334,0.87120344,119750.0,119740.0,0.00487]
[1755029576312,1.00768344,119750.0,119740.0,0.00487]
[1755029580295,0.49475131,119750.0,119740.0,0.00487]
[1755029580451,1.00768344,119750.0,119740.0,0.00487]
[1755029580846,0.49475131,119750.0,119740.0,0.00487]
[1755029581049,1.00768344,119750.0,119740.0,0.00487]
[1755029581788,0.49475131,119750.0,119740.0,0.00487]
[1755029582003,1.00768344,119750.0,119740.0,0.00487]
[1755029584531,0.18450548,119720.0,119710.0,0.0175]
[1755029584730,0.81920056,119720.0,119710.0,0.0175]
[1755029584854,0.82222056,119720.0,119710.0,0.0175]
[1755029585689,0.82422056,119720.0,119710.0,0.0175]
[1755029585894,0.31982271,119720.0,119710.0,0.0175]
[1755029586123,0.83475484,119720.0,119710.0,0.0175]
[1755029586440,0.83775484,119720.0,119710.0,0.0175]
[1755029587558,0.82922056,119720.0,119710.0,0.0175]
[1755029587893,0.27636873,119720.0,119710.0,0.02256]
[1755029588093,0.27422873,119720.0,119710.0,0.53549213]
[1755029588319,0.27422873,119720.0,119710.0,0.02256]
[1755029589943,0.27122873,119720.0,119710.0,0.02256]
[1755029590405,0.26822873,119720.0,119710.0,0.02256]
[1755029590865,0.17005646,119720.0,119710.0,0.02256]
[1755029591300,0.17005646,119720.0,119710.0,0.53549213]
[1755029594369,0.17005646,119720.0,119710.0,0.02256]
[1755029595019,0.68512859,119720.0,119710.0,0.01959]
[1755029595237,0.68814859,119720.0,119710.0,0.1539]
[1755029595459,0.25770089,119720.0,119710.0,0.1539]
[1755029596426,0.25770089,119720.0,119710.0,0.0175]
[1755029596427,0.87080529,119720.0,119710.0,0.0175]
[1755029598390,0.86980529,119720.0,119710.0,0.0175]
[1755029598930,0.86780529,119720.0,119710.0,0.0175]
[1755029599237,0.87180529,119720.0,119710.0,0.0175]
[1755029599649,0.35887316,119720.0,119710.0,0.0175]
[1755029599885,0.87180529,119720.0,119710.0,0.0175]
[1755029604697,1.38473742,119720.0,119710.0,0.0175]
[1755029604908,0.87180529,119720.0,119710.0,1e-08]
[1755029607595,1.00748529,119720.0,119710.0,1e-08]
[1755029608836,0.35585316,119720.0,119710.0,1e-08]
[1755029609459,0.35585316,119720.0,119710.0,0.00206001]
[1755029610081,0.35881316,119720.0,119710.0,0.00206001]
[1755029610911,0.35585316,119720.0,119710.0,0.00206001]
[1755029611842,0.87174529,119720.0,119710.0,1e-08]
[1755029614053,1.38467742,119720.0,119710.0,1e-08]
[1755029614665,0.87174529,119720.0,119710.0,1e-08]
[1755029615315,1.38467742,119720.0,119710.0,1e-08]
[1755029615520,1.51859742,119720.0,119710.0,1e-08]
[1755029615723,1.52159742,119720.0,119710.0,1e-08]
[1755029615932,1.51959742,119720.0,119710.0,1e-08]
[1755029616349,0.49573316,119720.0,119710.0,1e-08]
[1755029616557,1.00866529,119720.0,119710.0,1e-08]
[1755029617973,0.52100712,119720.0,119710.0,1e-08]
[1755029618175,1.03393925,119720.0,119710.0,1e-08]
[1755029623196,0.52100712,119720.0,119710.0,1e-08]
[1755029623406,1.03393925,119720.0,119710.0,1e-08]
[1755029623816,0.52100712,119720.0,119710.0,1e-08]
[1755029624023,1.03393925,119720.0,119710.0,1e-08]
[1755029624233,1.03337925,119720.0,119710.0,1e-08]
[1755029624995,1.03337925,119720.0,119710.0,0.00206001]
[1755029624996,1.03041925,119720.0,119710.0,0.00206001]
[1755029625210,1.03041925,119720.0,119710.0,0.00504001]
[1755029625387,1.03041925,119720.0,119710.0,0.00206001]
[1755029625921,1.03337925,119720.0,119710.0,0.00206001]
[1755029626129,1.03337925,119720.0,119710.0,1e-08]
[1755029628744,1.54631138,119720.0,119710.0,1e-08]
[1755029632044,1.57135858,119720.0,119710.0,1e-08]
[1755029634236,0.54549432,119720.0,119710.0,1e-08]
[1755029634451,1.57135858,119720.0,119710.0,1e-08]
[1755029634676,0.54549432,119720.0,119710.0,1e-08]
[1755029634894,1.05842645,119720.0,119710.0,1e-08]
[1755029635776,1.57135858,119720.0,119710.0,1e-08]
[1755029640205,0.54549432,119720.0,119710.0,1e-08]
[1755029640433,1.05842645,119720.0,119710.0,1e-08]
[1755029640634,1.57135858,119720.0,119710.0,1e-08]
[1755029642003,1.05842645,119720.0,119710.0,1e-08]
[1755029643003,0.54549432,119720.0,119710.0,1e-08]
[1755029643222,1.05842645,119720.0,119710.0,1e-08]
[1755029643427,0.54549432,119720.0,119710.0,1e-08]
[1755029643874,0.68000255,119710.0,119700.0,0.00301]
[1755029644088,0.98029023,119710.0,119700.0,0.00212]
[1755029644650,0.4673581,119710.0,119700.0,0.00212]
[1755029644853,0.98029023,119710.0,119700.0,0.00513]
[1755029645342,0.98129023,119710.0,119700.0,0.00212]
[1755029646048,0.98229023,119710.0,119700.0,0.00212]
[1755029646975,0.4693581,119710.0,119700.0,0.00212]
[1755029647207,0.4693581,119710.0,119700.0,0.00513]
[1755029650694,0.3342781,119710.0,119700.0,0.00513]
[1755029650946,0.35172712,119710.0,119700.0,0.00513]
[1755029651139,0.25179367,119710.0,119700.0,0.51806213]
[1755029651353,0.16907042,119710.0,119700.0,0.51806213]
[1755029651562,0.16907042,119710.0,119700.0,0.00513]
[1755029652733,0.16907042,119710.0,119700.0,0.030205]
[1755029652968,0.20269125,119710.0,119700.0,0.030205]
[1755029654526,0.20269125,119710.0,119700.0,0.54313713]
[1755029655400,0.16907042,119710.0,119700.0,0.7102215]
[1755029656222,0.16907042,119710.0,119700.0,0.54313713]
[1755029657736,0.16907042,119710.0,119700.0,0.030205]
[1755029657958,0.16907042,119710.0,119700.0,0.54313713]
[1755029659536,0.16907042,119710.0,119700.0,0.030205]
[1755029659746,0.16907042,119710.0,119700.0,0.54313713]
[1755029660583,0.16807042,119710.0,119700.0,0.54313713]
[1755029660830,0.16707042,119710.0,119700.0,0.54313713]
[1755029661447,0.16707042,119710.0,119700.0,0.67817713]
[1755029662377,0.1671379,119720.0,119700.0,0.9952615]
[1755029662572,0.16707042,119710.0,119700.0,0.47931937]
[1755029662808,0.16707042,119710.0,119700.0,0.9671765]
[1755029663028,0.16707042,119710.0,119700.0,0.9701865]
[1755029663257,0.16707042,119710.0,119700.0,0.9952585]
[1755029663479,0.1671379,119720.0,119700.0,0.9952585]
[1755029663692,0.1671379,119720.0,119710.0,0.51594213]
[1755029663905,0.1671379,119720.0,119710.0,0.68513255]
[1755029664354,0.1671379,119720.0,119710.0,0.71020355]
[1755029664764,0.1671379,119720.0,119710.0,0.72312895]
[1755029664970,0.1671379,119720.0,119710.0,0.030201]
[1755029665175,0.1671379,119720.0,119710.0,0.54522151]
[1755029665373,0.1671379,119720.0,119710.0,0.54313313]
[1755029665576,0.1671379,119720.0,119710.0,0.030201]
[1755029665784,0.1671379,119720.0,119710.0,0.54522151]
[1755029666014,0.1671379,119720.0,119710.0,0.71020355]
[1755029666855,0.1671379,119720.0,119710.0,0.71870725]
[1755029667061,8.144e-05,119720.0,119710.0,0.71870725]
[1755029667407,0.1671379,119720.0,119710.0,0.20577512]
[1755029667809,0.1671379,119720.0,119710.0,0.71870725]
[1755029669317,8.144e-05,119720.0,119710.0,0.71870725]
[1755029669771,0.1671379,119720.0,119710.0,0.71870725]
[1755029671254,8.144e-05,119720.0,119710.0,0.71870725]
[1755029671409,0.1671379,119720.0,119710.0,0.71870725]
[1755029673899,8.144e-05,119720.0,119710.0,0.71870725]
[1755029674513,0.1671379,119720.0,119710.0,0.71870725]
[1755029675743,8.144e-05,119720.0,119710.0,0.71870725]
[1755029680612,8.144e-05,119720.0,119710.0,1.51436263]
[1755029680820,8.144e-05,119720.0,119710.0,1.0014305]
[1755029681255,8.144e-05,119720.0,119710.0,0.48849837]
[1755029681470,8.144e-05,119720.0,119710.0,1.0014305]
[1755029682439,8.144e-05,119720.0,119710.0,1.51436263]
[1755029683693,8.144e-05,119720.0,119710.0,1.51536263]
[1755029684194,8.144e-05,119720.0,119710.0,1.51836263]
[1755029686686,8.144e-05,119720.0,119710.0,1.71836263]
[1755029686897,8.144e-05,119720.0,119710.0,1.74336263]
[1755029688451,8.144e-05,119720.0,119710.0,5.45276763]
[1755029688650,8.144e-05,119720.0,119710.0,4.82370763]
[1755029689204,8.144e-05,119720.0,119710.0,3.99382363]
[1755029689440,8.144e-05,119720.0,119710.0,3.97218363]
[1755029689640,8.144e-05,119720.0,119710.0,3.97418363]
[1755029689798,8.144e-05,119720.0,119710.0,4.11090363]
[1755029689996,8.144e-05,119720.0,119710.0,3.35297563]
[1755029690207,8.144e-05,119720.0,119710.0,3.18140563]
[1755029690847,8.144e-05,119720.0,119710.0,3.12328563]
[1755029691489,8.144e-05,119720.0,119710.0,3.12628563]
[1755029692272,8.144e-05,119720.0,119710.0,3.08768863]
[1755029692444,8.144e-05,119720.0,119710.0,3.03418063]
[1755029693442,8.144e-05,119720.0,119710.0,2.53725263]
[1755029693601,8.144e-05,119720.0,119710.0,2.44102263]
[1755029694087,8.144e-05,119720.0,119710.0,2.52897263]
[1755029694436,8.144e-05,119720.0,119710.0,2.44102263]
[1755029696106,8.144e-05,119720.0,119710.0,2.02963863]
[1755029696320,8.144e-05,119720.0,119710.0,1.99055863]
[1755029697223,8.144e-05,119720.0,119710.0,1.99372863]
[1755029700719,8.144e-05,119720.0,119710.0,1.99055863]
[1755029700932,8.144e-05,119720.0,119710.0,2.17911963]
[1755029701141,0.00211144,119720.0,119710.0,2.17912263]
[1755029701351,0.00211144,119720.0,119710.0,2.04304263]
[1755029701562,0.00521144,119720.0,119710.0,2.17912263]
[1755029702948,0.00521144,119720.0,119710.0,2.07779263]
[1755029703627,0.16703079,119740.0,119730.0,0.36704251]
[1755029703845,0.16906079,119740.0,119730.0,1.09861789]
[1755029704047,0.00203,119740.0,119730.0,1.09861789]
[1755029704263,0.16905856,119740.0,119730.0,1.09861789]
[1755029704476,0.00203,119740.0,119730.0,1.12368089]
[1755029704690,0.16905856,119740.0,119730.0,1.12368089]
[1755029705762,0.17215856,119740.0,119730.0,1.12368089]
[1755029706299,0.00513,119740.0,119730.0,1.12368089]
[1755029706793,0.17215856,119740.0,119730.0,1.12368089]
[1755029707209,0.00513,119740.0,119730.0,1.12368089]
[1755029707436,0.17215856,119740.0,119730.0,1.12368089]
[1755029707819,0.17215856,119740.0,119730.0,0.61074876]
[1755029708074,0.17215856,119740.0,119730.0,1.12368089]
[1755029710226,0.00513,119740.0,119730.0,1.12368089]
[1755029710433,0.00203,119740.0,119730.0,1.12368089]
[1755029710637,0.00203,119740.0,119730.0,1.12567089]
[1755029712309,0.00203,119740.0,119730.0,1.12873089]
[1755029712732,0.00203,119740.0,119730.0,0.61579876]
[1755029712945,0.0031,119750.0,119740.0,0.31702856]
[1755029713153,0.00513,119750.0,119740.0,0.45362856]
[1755029713422,0.00513,119750.0,119740.0,0.96656069]
[1755029713841,0.00513,119750.0,119740.0,0.99162469]
[1755029714265,0.00303,119750.0,119740.0,0.99361469]
[1755029714475,0.00303,119750.0,119740.0,0.99667469]
[1755029714699,0.00403,119750.0,119740.0,0.99667469]
[1755029715539,0.00403,119750.0,119740.0,0.48374256]
[1755029715750,0.002,119750.0,119740.0,1.07939794]
[1755029716408,0.17848164,119770.0,119750.0,0.16700367]
[1755029716623,0.00215222,119760.0,119750.0,0.17108135]
[1755029716831,0.00215222,119760.0,119750.0,0.8188458]
[1755029717420,0.00215222,119760.0,119750.0,0.8439078]
[1755029717642,0.16915288,119760.0,119750.0,0.8439078]
[1755029717836,0.00315222,119760.0,119750.0,0.8439078]
[1755029718261,0.00415222,119760.0,119750.0,0.8439078]
[1755029718677,0.17115288,119760.0,119750.0,0.8439078]
[1755029724215,0.00415222,119760.0,119750.0,0.92663105]
[1755029724422,0.00212222,119760.0,119750.0,1.64262318]
[1755029725059,0.00112222,119760.0,119750.0,1.64262318]
[1755029725512,0.00112222,119760.0,119750.0,1.12969105]
[1755029726181,0.00012222,119760.0,119750.0,1.12969105]
[1755029727047,0.00012222,119760.0,119750.0,1.13069105]
[1755029727254,0.00012222,119760.0,119750.0,1.13169105]
[1755029728602,0.00012222,119760.0,119750.0,1.13129105]
[1755029730526,0.16712288,119760.0,119750.0,0.61835892]
[1755029730733,0.00012222,119760.0,119750.0,1.13129105]
[1755029731568,0.00012222,119760.0,119750.0,1.64422318]
[1755029738278,0.00012222,119760.0,119750.0,0.81835892]
[1755029738715,0.00012222,119760.0,119750.0,1.84422318]
[1755029739353,0.00012222,119760.0,119750.0,0.81835892]
[1755029739562,0.00012222,119760.0,119750.0,1.84422318]
[1755029739775,0.00012222,119760.0,119750.0,4.32455522]
[1755029740024,7.55e-06,119760.0,119750.0,4.2969092]
[1755029740235,7.55e-06,119760.0,119750.0,3.9042412]
[1755029740449,7.55e-06,119760.0,119750.0,3.7977512]
[1755029740656,7.55e-06,119760.0,119750.0,3.7967512]
[1755029740874,7.55e-06,119760.0,119750.0,3.5085082]
[1755029741087,7.55e-06,119760.0,119750.0,3.4556442]
[1755029741311,7.55e-06,119760.0,119750.0,2.42977994]
[1755029741522,7.55e-06,119760.0,119750.0,3.4556442]
[1755029742179,7.55e-06,119760.0,119750.0,3.4526442]
[1755029742395,7.55e-06,119760.0,119750.0,2.28618194]
[1755029742631,7.55e-06,119760.0,119750.0,2.77245394]
[1755029742842,7.55e-06,119760.0,119750.0,3.8013182]
[1755029743272,7.55e-06,119760.0,119750.0,2.77545394]
[1755029743481,7.55e-06,119760.0,119750.0,3.8013182]
[1755029745429,7.55e-06,119760.0,119750.0,3.8263182]
[1755029746616,7.55e-06,119760.0,119750.0,2.80045394]
[1755029746826,7.55e-06,119760.0,119750.0,3.8263182]
[1755029747841,7.55e-06,119760.0,119750.0,2.80045394]
[1755029747965,7.55e-06,119760.0,119750.0,3.8263182]
[1755029748580,7.55e-06,119760.0,119750.0,4.00396422]
[1755029748783,7.55e-06,119760.0,119750.0,2.97809996]
[1755029748988,7.55e-06,119760.0,119750.0,3.00222996]
[1755029749194,7.55e-06,119760.0,119750.0,4.02809422]
[1755029749406,7.55e-06,119760.0,119750.0,2.83806394]
[1755029749611,7.55e-06,119760.0,119750.0,3.6291982]
[1755029749827,0.00321,119790.0,119780.0,0.31697278]
[1755029750033,0.00521,119790.0,119780.0,0.9057354]
[1755029750245,0.00521,119790.0,119780.0,0.39280327]
[1755029750670,0.00521,119790.0,119780.0,0.55977605]
[1755029750889,0.00521,119790.0,119780.0,0.9307854]
[1755029751104,0.00521,119790.0,119780.0,0.43077867]
[1755029751553,0.00521,119790.0,119780.0,0.9437108]
[1755029751986,0.00721,119790.0,119780.0,0.41785327]
[1755029752207,0.00721,119790.0,119780.0,0.41813327]
[1755029752410,0.00721,119790.0,119780.0,0.9310654]
[1755029752624,0.00721,119790.0,119780.0,0.41813327]
[1755029752834,0.00921,119790.0,119780.0,0.9310654]
[1755029753268,0.00921,119790.0,119780.0,0.95632169]
[1755029753916,0.00921,119790.0,119780.0,0.44338956]
[1755029754127,0.00921,119790.0,119780.0,0.61036234]
[1755029754350,0.00921,119790.0,119780.0,0.44338956]
[1755029754561,0.00921,119790.0,119780.0,1.12329447]
[1755029754986,0.00921,119790.0,119780.0,0.61036234]
[1755029755630,0.00374038,119800.0,119790.0,0.16695884]
[1755029755836,0.00386258,119800.0,119790.0,0.68704795]
[1755029756051,0.00386258,119800.0,119790.0,0.17202884]
[1755029756254,0.00386258,119800.0,119790.0,0.68496097]
[1755029756463,0.00386258,119800.0,119790.0,0.57202884]
[1755029756671,0.00386258,119800.0,119790.0,1.16768422]
[1755029756913,0.00486258,119800.0,119790.0,1.16768422]
[1755029757348,0.00386258,119800.0,119790.0,1.17607998]
[1755029757554,0.00386258,119800.0,119790.0,0.66314785]
[1755029757970,0.00386258,119800.0,119790.0,1.17607998]
[1755029758626,0.00386258,119800.0,119790.0,1.68901211]
[1755029759046,0.00386258,119800.0,119790.0,0.88698585]
[1755029759296,0.00386258,119800.0,119790.0,1.94049613]
[1755029759537,0.00386258,119800.0,119790.0,1.91285011]
[1755029760589,0.00386258,119800.0,119790.0,1.91585011]
[1755029760805,0.00386258,119800.0,119790.0,0.88998585]
[1755029761025,0.00386258,119800.0,119790.0,1.91585011]
[1755029761435,0.00386258,119800.0,119790.0,0.89298585]
[1755029761657,0.00386258,119800.0,119790.0,1.91885011]
[1755029763159,0.00386258,119800.0,119790.0,0.89298585]
[1755029763390,0.00386258,119800.0,119790.0,1.91885011]
[1755029763607,0.00022845,119800.0,119790.0,0.89298585]
[1755029764269,0.00022845,119800.0,119790.0,1.91885011]
[1755029764474,0.00234845,119800.0,119790.0,1.51885011]
[1755029764703,0.00234845,119800.0,119790.0,1.11948998]
[1755029765121,0.00557845,119800.0,119790.0,0.29711901]
[1755029765332,0.00557845,119800.0,119790.0,0.43951901]
[1755029765746,0.00557845,119800.0,119790.0,0.95245114]
[1755029765986,0.17252335,119800.0,119790.0,0.95245114]
[1755029766192,0.17252335,119800.0,119790.0,0.09111901]
[1755029766402,0.16695884,119790.0,119780.0,0.90882215]
[1755029766608,0.16695884,119790.0,119780.0,0.9915454]
[1755029766609,0.17230884,119790.0,119780.0,0.9915454]
[1755029766816,0.17230884,119790.0,119780.0,0.33715952]
[1755029767046,0.17230884,119790.0,119780.0,0.39687627]
[1755029767494,0.17230884,119790.0,119780.0,0.9097284]
[1755029767699,0.17230884,119790.0,119780.0,0.38825002]
[1755029767909,0.17230884,119790.0,119780.0,0.90118215]
[1755029768121,0.17230884,119790.0,119780.0,0.90318215]
[1755029768564,0.17230884,119790.0,119780.0,0.39025002]
[1755029768999,0.17230884,119790.0,119780.0,0.90318215]
[1755029769616,0.00535,119790.0,119780.0,0.39025002]
[1755029770038,0.00535,119790.0,119780.0,0.90318215]
[1755029770240,0.00535,119790.0,119780.0,0.90418215]
[1755029770450,0.00535,119790.0,119780.0,0.39125002]
[1755029770861,0.17230884,119790.0,119780.0,0.39125002]
[1755029771070,0.00212,119790.0,119780.0,0.90418215]
[1755029771279,0.00212,119790.0,119780.0,1.1369054]
[1755029771490,0.00345845,119800.0,119780.0,1.30886818]
[1755029771491,0.00022845,119800.0,119780.0,1.30886818]
[1755029771697,0.00022845,119800.0,119790.0,0.74002236]
[1755029771906,0.00022845,119800.0,119790.0,0.94292538]
[1755029772329,0.00022845,119800.0,119790.0,1.10988422]
[1755029775341,0.00022845,119800.0,119790.0,0.59695209]
[1755029775554,0.00022845,119800.0,119790.0,1.62281635]
[1755029776183,0.00022845,119800.0,119790.0,2.00615635]
[1755029776395,0.00022845,119800.0,119790.0,2.00815635]
[1755029776808,0.00022845,119800.0,119790.0,2.00615635]
[1755029777220,0.00022845,119800.0,119790.0,2.00949635]
[1755029778249,0.00022845,119800.0,119790.0,1.85837535]
[1755029778476,0.00022845,119800.0,119790.0,1.75627535]
[1755029778678,0.00022845,119800.0,119790.0,0.60029209]
[1755029778884,0.00022845,119800.0,119790.0,1.73740535]
[1755029779091,0.00022845,119800.0,119790.0,1.88384035]
[1755029779508,0.00022845,119800.0,119790.0,1.82324035]
[1755029780590,0.00022845,119800.0,119790.0,1.31030822]
[1755029781016,0.00022845,119800.0,119790.0,1.82324035]
[1755029784853,0.0001622,119800.0,119790.0,1.82324035]
[1755029785090,2.904e-05,119800.0,119790.0,0.89247113]
[1755029785530,2.904e-05,119800.0,119790.0,0.86482511]
[1755029785741,2.904e-05,119800.0,119790.0,0.84737609]
[1755029786169,2.904e-05,119800.0,119790.0,0.84537609]
[1755029786391,2.904e-05,119800.0,119790.0,1.87516575]
[1755029786613,2.904e-05,119800.0,119790.0,1.87816575]
[1755029786828,2.904e-05,119800.0,119790.0,0.85230149]
[1755029787058,2.904e-05,119800.0,119790.0,1.87816575]
[1755029787505,2.904e-05,119800.0,119790.0,0.84537609]
[1755029787758,2.904e-05,119800.0,119790.0,1.87124035]
[1755029788236,2.904e-05,119800.0,119790.0,2.4046215]
[1755029788486,2.904e-05,119800.0,119790.0,2.581782]
[1755029788712,2.904e-05,119800.0,119790.0,1.01533959]
[1755029788942,0.0002,119810.0,119800.0,0.73439392]
[1755029789177,0.00068757,119810.0,119800.0,5.53774831]
[1755029789406,0.00068757,119810.0,119800.0,4.39795243]
[1755029789636,0.00068757,119810.0,119800.0,4.91088456]
[1755029790321,0.00068757,119810.0,119800.0,3.37208817]
[1755029790567,0.00068757,119810.0,119800.0,4.96541493]
[1755029790795,0.00068757,119810.0,119800.0,4.93700456]
[1755029791245,0.00068757,119810.0,119800.0,4.96541493]
[1755029791486,0.0002,119820.0,119810.0,0.43437999]
[1755029791711,0.0002,119820.0,119810.0,6.59943787]
[1755029792177,0.0002,119820.0,119810.0,5.57357361]
[1755029792398,0.0002,119820.0,119810.0,6.5960275]
[1755029792840,0.0004,119840.0,119830.0,0.0008]
[1755029793043,0.00054618,119840.0,119830.0,7.57170433]
[1755029793261,0.00054618,119840.0,119830.0,7.59594214]
[1755029793473,0.00054618,119840.0,119830.0,7.05459964]
[1755029793687,0.00054618,119840.0,119830.0,7.05793664]
[1755029794138,0.00054618,119840.0,119830.0,6.03207238]
[1755029794363,0.00054618,119840.0,119830.0,7.05793664]
[1755029795216,0.00054618,119840.0,119830.0,7.06193664]
[1755029795442,0.00054618,119840.0,119830.0,7.57486877]
[1755029795881,0.00054618,119840.0,119830.0,7.60327914]
[1755029796315,0.00054618,119840.0,119830.0,7.57486877]
[1755029796583,0.00054618,119840.0,119830.0,5.00971938]
[1755029796830,0.00054618,119840.0,119830.0,6.54851577]
[1755029797051,0.00054618,119840.0,119830.0,5.52265151]
[1755029797258,0.00054618,119840.0,119830.0,6.54851577]
[1755029797681,0.00054618,119840.0,119830.0,6.57351868]
[1755029797909,0.00221618,119880.0,119870.0,0.55]
[1755029798156,0.00444234,119880.0,119870.0,0.96689335]
[1755029798566,0.00444234,119880.0,119870.0,1.99275761]
[1755029798772,0.00444234,119880.0,119870.0,0.96689335]
[1755029798986,0.00222616,119880.0,119870.0,1.99275761]
[1755029799198,0.00222616,119880.0,119870.0,1.99471761]
[1755029799432,0.00422616,119880.0,119870.0,1.99769761]
[1755029799860,0.00214616,119880.0,119870.0,1.99769761]
[1755029800282,0.00214616,119880.0,119870.0,0.97183335]
[1755029801131,0.00214616,119880.0,119870.0,0.97517035]
[1755029801557,0.00214616,119880.0,119870.0,2.02603461]
[1755029801977,0.00214616,119880.0,119870.0,2.00103461]
[1755029802192,0.00214616,119880.0,119870.0,1.16701776]
[1755029802397,0.00214616,119880.0,119870.0,1.00017035]
[1755029802602,0.00214616,119880.0,119870.0,2.02603461]
[1755029802809,0.00214616,119880.0,119870.0,2.03422443]
[1755029803280,0.00214616,119880.0,119870.0,2.22607184]
[1755029803711,0.00214616,119880.0,119870.0,2.25588937]
[1755029803951,0.00041538,119880.0,119870.0,1.23002511]
[1755029804179,0.00041538,119880.0,119870.0,1.20020758]
[1755029804463,0.00041538,119880.0,119870.0,2.22607184]
[1755029804892,0.00041538,119880.0,119870.0,1.20020758]
[1755029805357,0.00041538,119880.0,119870.0,0.98336017]
[1755029805825,0.00041538,119880.0,119870.0,2.17607184]
[1755029806260,0.00041538,119880.0,119870.0,1.15020758]
[1755029806474,0.00041538,119880.0,119870.0,0.61394017]